fUST/lending_fUST_20250227
["ID","MTS","AMOUNT","RATE_DAILY","PERIOD"]
[354681764,1740613847345,-926.42,0.00046849,120]
[354681765,1740613847354,-521.64,0.00046849,120]
[354681766,1740613847364,-500.0,0.00046849,120]
[354681767,1740613847373,-500.0,0.00046849,120]
[354681768,1740613847382,-500.0,0.00046849,120]
[354681769,1740613847391,-925.1,0.00046849,120]
[354681770,1740613847400,-500.0,0.00046849,120]
[354681771,1740613847409,-533.98,0.00046849,120]
[354681772,1740613847419,-500.0,0.00046849,120]
[354681773,1740613847429,-1545.2,0.00046849,120]
[354681774,1740613847438,-546.59,0.00046849,120]
[354681775,1740613847447,-500.0,0.00046849,120]
[354681776,1740613847456,-500.0,0.00046849,120]
[354681777,1740613847466,-500.0,0.00046849,120]
[354681778,1740613847475,-500.0,0.00046849,120]
[354681779,1740613847484,-607.26,0.00046849,120]
[354681780,1740613847493,-500.0,0.00046849,120]
[354681781,1740613847504,-500.0,0.00046849,120]
[354681782,1740613847514,-500.0,0.00046849,120]
[354681783,1740613847526,-500.0,0.00046849,120]
[354681784,1740613847535,-500.0,0.00046849,120]
[354681785,1740613847546,-500.0,0.00046849,120]
[354681786,1740613847556,-678.14,0.00046849,120]
[354681787,1740613847566,-629.7,0.00046849,120]
[354681788,1740613847576,-294.0720782,0.00046849,120]
[354681789,1740613847586,-500.0,0.00046849,120]
[354681790,1740613847595,-1032.09,0.00046849,120]
[354681791,1740613847604,-529.81,0.00046849,120]
[354681792,1740613847613,-478.61372813,0.00046849,2]
[354681793,1740613847622,-500.0,0.00046849,120]
[354681794,1740613847631,-500.0,0.00046849,120]
[354681795,1740613847641,-500.0,0.00046849,120]
[354681796,1740613847650,-500.0,0.00046849,120]
[354681797,1740613847659,-500.0,0.00046849,120]
[354681798,1740613847668,-500.0,0.00046849,120]
[354681799,1740613847678,-500.0,0.00046849,120]
[354681800,1740613847687,-500.0,0.00046849,120]
[354681801,1740613847696,-500.0,0.00046849,120]
[354681802,1740613847705,-1475.05,0.00046849,120]
[354681803,1740613847714,-500.0,0.00046849,120]
[354681804,1740613847723,-500.0,0.00046849,120]
[354681805,1740613847732,-500.0,0.00046849,120]
[354681806,1740613847860,-1106.66,0.00046849,120]
[354681807,1740613847871,-500.0,0.00046849,120]
[354681808,1740613847880,-500.0,0.00046849,120]
[354681809,1740613847890,-579.5,0.00046849,120]
[354681810,1740613847899,-500.0,0.00046849,120]
[354681811,1740613847909,-507.16011455,0.00046849,28]
[354681812,1740613847919,-500.0,0.00046849,120]
[354681813,1740613847928,-550.79799849,0.00046849,120]
[354681814,1740613847937,-500.0,0.00046849,120]
[354681815,1740613847946,-500.0,0.00046849,120]
[354681816,1740613847956,-500.0,0.00046849,21]
[354681817,1740613847964,-545.00435592,0.00046849,120]
[354681818,1740613847973,-501.30934755,0.00046849,120]
[354681819,1740613847983,-500.0,0.00046849,120]
[354681820,1740613847992,-500.0,0.00046849,120]
[354681821,1740613848002,-500.0,0.00046849,120]
[354681822,1740613848012,-1920.07,0.00046849,120]
[354681823,1740613848021,-500.0,0.00046849,120]
[354681824,1740613848031,-500.0,0.00046849,120]
[354681825,1740613848040,-500.0,0.00046849,120]
[354681826,1740613848050,-3284.45,0.00046849,120]
[354681827,1740613848059,-500.0,0.00046849,120]
[354681828,1740613848071,-500.0,0.00046849,120]
[354681829,1740613848081,-32439.01,0.00046849,6]
[354681830,1740613848090,-500.63120117,0.00046849,120]
[354681831,1740613848100,-500.0,0.00046849,120]
[354681832,1740613848111,-500.0,0.00046849,120]
[354681833,1740613848120,-500.0,0.00046849,120]
[354681834,1740613848130,-500.0,0.00046849,120]
[354681835,1740613848139,-500.0,0.00046849,120]
[354681836,1740613848150,-500.0,0.00046849,120]
[354681837,1740613848160,-1196.46,0.00046849,120]
[354681838,1740613848170,-558.43,0.00046849,120]
[354681839,1740613848180,-506.81,0.00046849,120]
[354681840,1740613848190,-500.0,0.00046849,120]
[354681841,1740613848200,-500.0,0.00046849,120]
[354681842,1740613848210,-500.0,0.00046849,120]
[354681843,1740613848219,-500.0,0.00046849,120]
[354681844,1740613848229,-500.0,0.00046849,120]
[354681845,1740613848238,-660.61,0.00046849,120]
[354681846,1740613848248,-2221.3,0.00046849,120]
[354681847,1740613848258,-500.0,0.00046849,120]
[354681848,1740613848267,-500.0,0.00046849,120]
[354681849,1740613848277,-500.0,0.00046849,120]
[354681850,1740613848286,-810.04,0.00046849,120]
[354681851,1740613848296,-779.59,0.00046849,120]
[354681852,1740613848306,-24611.67,0.00046849,120]
[354681853,1740613848315,-502.09010371,0.00046849,120]
[354681854,1740613848325,-511.66259997,0.00046849,120]
[354681855,1740613848334,-1448.05,0.00046849,120]
[354681856,1740613848343,-629.15501364,0.00046849,120]
[354681857,1740613848353,-500.0,0.00046849,2]
[354681858,1740613848362,-501.02554838,0.00046849,120]
[354681859,1740613848371,-750.04,0.00046849,120]
[354681860,1740613848381,-570.43118215,0.00046849,120]
[354681861,1740613848390,-500.0,0.00046849,120]
[354681862,1740613848399,-500.0,0.00046849,120]
[354681863,1740613848409,-500.0,0.00046849,120]
[354681864,1740613848418,-500.0,0.00046849,120]
[354681865,1740613848428,-500.0,0.00046849,120]
[354681866,1740613848438,-2578.79,0.00046849,120]
[354681867,1740613848447,-500.0,0.00046849,120]
[354681868,1740613848457,-955.38,0.00046849,120]
[354681869,1740613848466,-500.0,0.00046849,120]
[354681870,1740613848475,-500.0,0.00046849,120]
[354681871,1740613848484,-929.32,0.00046849,120]
[354681872,1740613848493,-500.0,0.00046849,120]
[354681873,1740613848503,-7158.58,0.00046849,120]
[354681874,1740613848512,-2084.86,0.00046849,120]
[354681875,1740613848522,-500.0,0.00046849,120]
[354681876,1740613848531,-5296.01,0.00046849,120]
[354681877,1740613848541,-500.0,0.00046849,120]
[354681878,1740613848550,-500.0,0.00046849,120]
[354681879,1740613848560,-500.0,0.00046849,120]
[354681880,1740613848569,-500.0,0.00046849,120]
[354681881,1740613848579,-500.0,0.00046849,120]
[354681882,1740613848588,-500.0,0.00046849,120]
[354681883,1740613848598,-500.0,0.00046849,120]
[354681884,1740613848607,-500.0,0.00046873,10]
[354681885,1740613848617,-500.0,0.00046873,10]
[354681886,1740613848627,-500.0,0.00046873,10]
[354681887,1740613848638,-500.0,0.00046873,10]
[354681888,1740613848648,-500.0,0.00046873,10]
[354681889,1740613848658,-500.0,0.00046873,10]
[354681890,1740613848668,-500.0,0.00046873,10]
[354681891,1740613848678,-500.0,0.00046873,10]
[354681892,1740613848688,-258.67328275,0.00046873,10]
[354681893,1740613848697,-501.59863052,0.00046873,10]
[354681894,1740613848707,-500.0,0.00046873,10]
[354681895,1740613848716,-500.0,0.00046873,10]
[354681896,1740613848726,-500.0,0.00046873,10]
[354681897,1740613848735,-5001.42,0.000469,30]
[354681898,1740613848744,-202771.8,0.000469,30]
[354681899,1740613848754,-151.0,0.000469,26]
[354681900,1740613848763,-151.0,0.00047,25]
[354681901,1740613848772,-151.0,0.00047,24]
[354681902,1740613848781,-6899.63549571,0.00047023,2]
[354681903,1740613848790,-151.0,0.000471,30]
[354681904,1740613848800,-500.0,0.00047122,120]
[354681905,1740613848809,-500.0,0.00047123,120]
[354681906,1740613848819,-500.0,0.00047123,120]
[354681907,1740613848828,-500.0,0.00047123,120]
[354681908,1740613848837,-500.0,0.00047123,120]
[354681909,1740613848847,-500.0,0.00047123,120]
[354681910,1740613848856,-500.0,0.00047123,120]
[354681911,1740613848866,-500.0,0.00047123,120]
[354681912,1740613848875,-500.0,0.00047123,120]
[354681913,1740613848884,-500.0,0.00047123,120]
[354681914,1740613848894,-500.0,0.00047123,120]
[354681915,1740613848904,-519.61,0.00047123,120]
[354681916,1740613848914,-568.69,0.00047123,120]
[354681917,1740613848924,-500.0,0.00047123,120]
[354681918,1740613848934,-500.0,0.00047123,120]
[354681919,1740613848944,-500.0,0.00047123,120]
[354681920,1740613848954,-500.0,0.00047123,120]
[354681921,1740613848963,-500.0,0.00047123,120]
[354681922,1740613848973,-500.0,0.00047123,120]
[354681923,1740613848983,-500.0,0.00047123,120]
[354681924,1740613848992,-500.0,0.00047123,120]
[354681925,1740613849002,-500.0,0.00047123,120]
[354681926,1740613849012,-500.0,0.00047123,120]
[354681927,1740613849022,-500.0,0.00047123,120]
[354681928,1740613849032,-500.0,0.00047123,120]
[354681929,1740613849042,-500.0,0.00047123,120]
[354681930,1740613849053,-500.0,0.00047123,120]
[354681931,1740613849064,-500.0,0.00047123,120]
[354681932,1740613849079,-500.0,0.00047123,120]
[354681933,1740613849097,-500.0,0.00047123,120]
[354681934,1740613849108,-500.0,0.00047123,120]
[354681935,1740613849118,-500.0,0.00047123,120]
[354681936,1740613849128,-500.0,0.00047123,120]
[354681937,1740613849138,-500.0,0.00047123,120]
[354681938,1740613849148,-500.0,0.00047123,120]
[354681939,1740613849158,-635.79,0.00047123,120]
[354681940,1740613849167,-500.0,0.00047123,120]
[354681941,1740613849178,-308.18780034,0.00047123,120]
[354681942,1740613849188,-500.0,0.00047123,120]
[354681943,1740613849198,-500.0,0.00047123,120]
[354681944,1740613849209,-500.0,0.00047123,120]
[354681945,1740613849219,-500.0,0.00047123,120]
[354681946,1740613849230,-500.0,0.00047123,120]
[354681947,1740613849239,-500.0,0.00047123,120]
[354681948,1740613849250,-500.0,0.00047123,120]
[354681949,1740613849260,-500.0,0.00047123,120]
[354681950,1740613849269,-511.83,0.00047123,120]
[354681951,1740613849279,-592.25,0.00047123,120]
[354681952,1740613849288,-500.0,0.00047123,120]
[354681953,1740613849298,-500.0,0.00047123,120]
[354681954,1740613849308,-500.0,0.00047123,120]
[354681955,1740613849319,-500.0,0.00047123,120]
[354681956,1740613849328,-568.89,0.00047123,120]
[354681957,1740613849338,-500.0,0.00047123,120]
[354681958,1740613849347,-565.7,0.00047123,120]
[354681959,1740613849358,-500.0,0.00047123,120]
[354681960,1740613849367,-500.0,0.00047123,120]
[354681961,1740613849377,-616.9,0.00047123,120]
[354681962,1740613849386,-500.0,0.00047123,120]
[354681963,1740613849396,-500.0,0.00047123,120]
[354681964,1740613849406,-919.39,0.00047123,120]
[354681965,1740613849416,-500.0,0.00047123,120]
[354681966,1740613849426,-500.0,0.00047123,120]
[354681967,1740613849436,-504.29,0.00047123,120]
[354681968,1740613849445,-500.0,0.00047123,120]
[354681969,1740613849455,-601.18,0.00047123,120]
[354681970,1740613849464,-500.0,0.00047123,120]
[354681971,1740613849474,-500.0,0.00047123,120]
[354681972,1740613849483,-1815.53,0.00047123,120]
[354681973,1740613849493,-500.0,0.00047123,120]
[354681974,1740613849502,-500.0,0.00047123,120]
[354681975,1740613849512,-500.0,0.00047123,120]
[354681976,1740613849521,-509.32,0.00047123,120]
[354681977,1740613849530,-500.0,0.00047123,120]
[354681978,1740613849540,-1026.69,0.00047123,120]
[354681979,1740613849549,-500.0,0.00047123,120]
[354681980,1740613849558,-500.0,0.00047123,120]
[354681981,1740613849567,-500.0,0.00047123,120]
[354681982,1740613849576,-500.0,0.00047123,120]
[354681983,1740613849586,-376.45502869,0.00047123,120]
[354681984,1740613849595,-500.0,0.00047123,120]
[354681985,1740613849604,-500.0,0.00047123,120]
[354681986,1740613849613,-501.75269151,0.00047123,7]
[354681987,1740613849623,-500.0,0.00047123,120]
[354681988,1740613849633,-1369.02,0.00047123,120]
[354681989,1740613849643,-500.0,0.00047123,120]
[354681990,1740613849653,-500.0,0.00047123,120]
[354681991,1740613849662,-500.0,0.00047123,120]
[354681992,1740613849671,-500.0,0.00047123,120]
[354681993,1740613849681,-500.0,0.00047123,120]
[354681994,1740613849690,-500.0,0.00047123,120]
[354681995,1740613849699,-500.0,0.00047123,120]
[354681996,1740613849708,-500.0,0.00047123,120]
[354681997,1740613849719,-1788.51,0.00047123,120]
[354681998,1740613849728,-500.0,0.00047123,120]
[354681999,1740613849738,-503.32289268,0.00047123,120]
[354682000,1740613849748,-555.97,0.00047123,120]
[354682001,1740613849760,-500.0,0.00047123,120]
[354682002,1740613849769,-500.0,0.00047123,120]
[354682003,1740613849778,-1510.38,0.00047123,120]
[354682004,1740613849788,-500.0,0.00047123,2]
[354682005,1740613849798,-584.07513483,0.00047123,120]
[354682006,1740613849807,-1938.79,0.00047123,120]
[354682007,1740613849818,-500.0,0.00047123,120]
[354682008,1740613849829,-740.69,0.00047123,120]
[354682009,1740613849838,-500.0,0.00047123,120]
[354682010,1740613849847,-584.77527752,0.00047123,120]
[354682011,1740613849857,-500.0,0.00047123,120]
[354682012,1740613849866,-540.44,0.00047123,120]
[354682013,1740613849875,-500.0,0.00047123,120]
[354682014,1740613849884,-500.0,0.00047123,120]
[354682015,1740613849893,-500.0,0.00047123,120]
[354682016,1740613849902,-500.0,0.00047123,120]
[354682017,1740613849913,-500.0,0.00047123,120]
[354682018,1740613849924,-1464.78,0.00047123,120]
[354682019,1740613849933,-500.0,0.00047123,120]
[354682020,1740613849943,-500.0,0.00047123,120]
[354682021,1740613849953,-500.0,0.00047123,120]
[354682022,1740613849962,-500.0,0.00047123,120]
[354682023,1740613849971,-500.0,0.00047123,120]
[354682024,1740613849981,-1101.62,0.00047123,120]
[354682025,1740613849991,-500.0,0.00047123,120]
[354682026,1740613850001,-500.0,0.00047123,120]
[354682027,1740613850010,-500.0,0.00047123,120]
[354682028,1740613850022,-500.0,0.00047123,120]
[354682029,1740613850032,-500.0,0.00047123,120]
[354682030,1740613850042,-500.0,0.00047123,120]
[354682031,1740613850051,-500.0,0.00047123,120]
[354682032,1740613850063,-989.24,0.00047123,120]
[354682033,1740613850186,-500.0,0.00047123,120]
[354682034,1740613850196,-500.0,0.00047123,120]
[354682035,1740613850205,-1070.07,0.00047123,120]
[354682036,1740613850215,-500.0,0.00047123,120]
[354682037,1740613850226,-510.41041465,0.00047123,120]
[354682038,1740613850235,-500.0,0.00047123,120]
[354682039,1740613850244,-599.18,0.00047123,120]
[354682040,1740613850253,-500.0,0.00047123,30]
[354682041,1740613850262,-500.0,0.00047123,120]
[354682042,1740613850271,-931.92,0.00047123,120]
[354682043,1740613850282,-500.0,0.00047123,120]
[354682044,1740613850292,-500.0,0.00047123,120]
[354682045,1740613850301,-2163.22,0.00047123,120]
[354682046,1740613850311,-500.0,0.00047123,120]
[354682047,1740613850320,-500.0,0.00047123,120]
[354682048,1740613850331,-976.03,0.00047123,120]
[354682049,1740613850343,-522.83,0.00047123,120]
[354682050,1740613850352,-500.0,0.00047123,120]
[354682051,1740613850361,-500.0,0.00047123,120]
[354682052,1740613850370,-500.0,0.00047123,120]
[354682053,1740613850379,-500.0,0.00047123,120]
[354682054,1740613850393,-501.72336212,0.00047123,120]
[354682055,1740613850403,-500.0,0.00047123,120]
[354682056,1740613850413,-551.06,0.00047123,120]
[354682057,1740613850422,-500.0,0.00047123,120]
[354682058,1740613850433,-500.0,0.00047123,120]
[354682059,1740613850442,-500.0,0.00047123,120]
[354682060,1740613850451,-500.0,0.00047123,30]
[354682061,1740613850462,-608.2765682,0.00047123,120]
[354682062,1740613850471,-500.0,0.00047123,120]
[354682063,1740613850480,-300.0,0.00047123,120]
[354682064,1740613850490,-1192.75,0.00047123,120]
[354682065,1740613850499,-967.59,0.00047123,120]
[354682066,1740613850511,-934.57,0.00047123,120]
[354682067,1740613850520,-500.0,0.00047123,120]
[354682068,1740613850529,-796.65,0.00047123,120]
[354682069,1740613850538,-937.27,0.00047123,120]
[354682070,1740613850547,-695.91,0.00047123,120]
[354682071,1740613850557,-500.0,0.00047123,120]
[354682072,1740613850566,-500.0,0.00047123,120]
[354682073,1740613850575,-572.25,0.00047123,120]
[354682074,1740613850584,-535.45,0.00047123,120]
[354682075,1740613850593,-500.0,0.00047123,120]
[354682076,1740613850602,-500.0,0.00047123,120]
[354682077,1740613850611,-500.0,0.00047123,120]
[354682078,1740613850620,-500.0,0.00047123,120]
[354682079,1740613850630,-173.89482391,0.00047123,120]
[354682080,1740613850639,-797.61,0.00047123,120]
[354682081,1740613850648,-1035.69,0.00047123,120]
[354682082,1740613850658,-258.9010757,0.00047123,120]
[354682083,1740613850667,-500.0,0.00047123,120]
[354682084,1740613850675,-500.0,0.00047123,120]
[354682085,1740613850685,-1204.13,0.00047123,120]
[354682086,1740613850694,-527.06,0.00047123,120]
[354682087,1740613850704,-1000.0,0.00047123,120]
[354682088,1740613850715,-616.17,0.00047123,120]
[354682089,1740613850724,-500.0,0.00047123,120]
[354682090,1740613850732,-500.32861608,0.00047123,120]
[354682091,1740613850742,-500.0,0.00047123,120]
[354682092,1740613850752,-500.0,0.00047123,120]
[354682093,1740613850761,-500.0,0.00047123,120]
[354682094,1740613850770,-521.63058214,0.00047123,120]
[354682095,1740613850779,-360.24107478,0.00047123,120]
[354682096,1740613850788,-500.0,0.00047123,120]
[354682097,1740613850797,-500.0,0.00047123,14]
[354682098,1740613850806,-500.0,0.00047123,120]
[354682099,1740613850815,-500.0,0.00047123,15]
[354682100,1740613850824,-500.0,0.00047123,120]
[354682101,1740613850833,-611.21395971,0.00047123,120]
[354682102,1740613850842,-500.0,0.00047123,120]
[354682103,1740613850851,-500.0,0.00047123,120]
[354682104,1740613850860,-500.0,0.00047123,120]
[354682105,1740613850869,-500.0,0.00047123,120]
[354682106,1740613850878,-1943.35,0.00047123,120]
[354682107,1740613850888,-500.0,0.00047123,120]
[354682108,1740613850896,-500.0,0.00047123,120]
[354682109,1740613850905,-500.0,0.00047123,120]
[354682110,1740613850915,-773.8,0.00047123,120]
[354682111,1740613850924,-500.0,0.00047123,120]
[354682112,1740613850934,-500.0,0.00047123,120]
[354682113,1740613850943,-500.0,0.00047123,120]
[354682114,1740613850952,-863.42,0.00047123,120]
[354682115,1740613850961,-604.08,0.00047123,120]
[354682116,1740613850971,-500.0,0.00047123,120]
[354682117,1740613850980,-500.0,0.00047123,120]
[354682118,1740613850990,-500.0,0.00047123,120]
[354682119,1740613851000,-500.0,0.00047123,120]
[354682120,1740613851009,-500.0,0.00047123,120]
[354682121,1740613851019,-500.0,0.00047123,120]
[354682122,1740613851028,-500.0,0.00047123,120]
[354682123,1740613851038,-500.0,0.00047123,120]
[354682124,1740613851047,-545.98,0.00047123,120]
[354682125,1740613851057,-541.95,0.00047123,120]
[354682126,1740613851067,-500.0,0.00047123,120]
[354682127,1740613851078,-546.72239541,0.00047123,120]
[354682128,1740613851087,-500.0,0.00047123,120]
[354682129,1740613851096,-1805.32,0.00047123,120]
[354682130,1740613851105,-500.0,0.00047123,120]
[354682131,1740613851117,-500.0,0.00047123,120]
[354682132,1740613851126,-500.0,0.00047123,120]
[354682133,1740613851135,-500.0,0.00047123,120]
[354682134,1740613851145,-880.12,0.00047123,120]
[354682135,1740613851156,-500.0,0.00047123,120]
[354682136,1740613851166,-502.39894354,0.00047123,120]
[354682137,1740613851175,-500.0,0.00047123,120]
[354682138,1740613851185,-500.0,0.00047123,120]
[354682139,1740613851195,-500.0,0.00047123,120]
[354682140,1740613851207,-500.0,0.00047123,120]
[354682141,1740613851219,-820.91,0.00047123,120]
[354682142,1740613851229,-500.0,0.00047123,120]
[354682143,1740613851238,-620.80136186,0.00047123,120]
[354682144,1740613851247,-500.0,0.00047123,120]
[354682145,1740613851257,-500.0,0.00047123,120]
[354682146,1740613851266,-500.0,0.00047123,120]
[354682147,1740613851275,-500.0,0.00047123,120]
[354682148,1740613851284,-500.0,0.00047123,120]
[354682149,1740613851294,-500.0,0.00047123,45]
[354682150,1740613851303,-500.0,0.00047123,120]
[354682151,1740613851312,-500.0,0.00047123,120]
[354682152,1740613851321,-193.27442543,0.00047123,120]
[354682153,1740613851331,-686.82,0.00047123,120]
[354682154,1740613851340,-2676.57,0.00047123,120]
[354682155,1740613851349,-500.0,0.00047123,120]
[354682156,1740613851358,-2734.71,0.00047123,120]
[354682157,1740613851368,-500.0,0.00047123,120]
[354682158,1740613851377,-500.0,0.00047123,120]
[354682159,1740613851386,-500.0,0.00047123,120]
[354682160,1740613851395,-503.57,0.00047123,120]
[354682161,1740613851404,-500.0,0.00047123,120]
[354682162,1740613851413,-500.0,0.00047123,120]
[354682163,1740613851423,-500.0,0.00047123,120]
[354682164,1740613851432,-678.88,0.00047123,120]
[354682165,1740613851442,-500.0,0.00047123,120]
[354682166,1740613851451,-500.0,0.00047123,120]
[354682167,1740613851459,-636.49,0.00047123,120]
[354682168,1740613851469,-500.0,0.00047123,120]
[354682169,1740613851478,-500.0,0.00047123,120]
[354682170,1740613851487,-500.0,0.00047123,120]
[354682171,1740613851496,-954.71,0.00047123,120]
[354682172,1740613851505,-500.0,0.00047123,120]
[354682173,1740613851514,-500.0,0.00047123,120]
[354682174,1740613851523,-500.0,0.00047123,120]
[354682175,1740613851532,-500.0,0.00047123,120]
[354682176,1740613851541,-500.0,0.00047123,120]
[354682177,1740613851550,-500.0,0.00047123,120]
[354682178,1740613851559,-500.0,0.00047123,120]
[354682179,1740613851569,-500.0,0.00047123,120]
[354682180,1740613851578,-1045.34,0.00047123,120]
[354682181,1740613851587,-500.0,0.00047123,120]
[354682182,1740613851597,-500.0,0.00047123,120]
[354682183,1740613851607,-500.0,0.00047123,120]
[354682184,1740613851616,-500.0,0.00047123,120]
[354682185,1740613851625,-548.72,0.00047123,120]
[354682186,1740613851634,-500.0,0.00047123,120]
[354682187,1740613851643,-500.0,0.00047123,120]
[354682188,1740613851652,-500.0,0.00047123,120]
[354682189,1740613851661,-500.0,0.00047123,120]
[354682190,1740613851671,-500.0,0.00047123,120]
[354682191,1740613851680,-200.0,0.00047123,7]
[354682192,1740613851689,-500.0,0.00047123,120]
[354682193,1740613851698,-500.0,0.00047123,120]
[354682194,1740613851708,-500.0,0.00047123,120]
[354682195,1740613851716,-500.0,0.00047123,120]
[354682196,1740613851725,-1453.36,0.00047123,120]
[354682197,1740613851735,-500.0,0.00047123,120]
[354682198,1740613851744,-542.34,0.00047123,120]
[354682199,1740613851753,-1360.19,0.00047123,120]
[354682200,1740613851762,-500.0,0.00047123,120]
[354682201,1740613851771,-500.0,0.00047123,30]
[354682202,1740613851780,-500.0,0.00047123,120]
[354682203,1740613851789,-1094.73,0.00047123,120]
[354682204,1740613851798,-1282.13,0.00047123,120]
[354682205,1740613851808,-4704.5,0.00047123,3]
[354682206,1740613851817,-500.0,0.00047123,120]
[354682207,1740613851826,-500.0,0.00047123,120]
[354682208,1740613851835,-665.56,0.00047123,120]
[354682209,1740613851844,-19265.7,0.00047123,120]
[354682210,1740613851854,-505.63297122,0.00047123,120]
[354682211,1740613851863,-500.0,0.00047123,120]
[354682212,1740613851872,-621.98,0.00047123,120]
[354682213,1740613851881,-500.0,0.00047123,120]
[354682214,1740613851890,-581.80637104,0.00047123,120]
[354682215,1740613851899,-500.6,0.00047123,20]
[354682216,1740613851909,-500.0,0.00047123,120]
[354682217,1740613851918,-500.0,0.00047123,120]
[354682218,1740613851927,-500.0,0.00047123,120]
[354682219,1740613851936,-500.0,0.00047123,120]
[354682220,1740613851947,-1022.93,0.00047123,120]
[354682221,1740613851957,-1236.04,0.00047123,120]
[354682222,1740613851966,-500.0,0.00047123,120]
[354682223,1740613851975,-500.0,0.00047123,120]
[354682224,1740613851984,-500.0,0.00047123,120]
[354682225,1740613851993,-1376.85,0.00047123,120]
[354682226,1740613852003,-500.0,0.00047123,120]
[354682227,1740613852014,-71297.28,0.00047123,7]
[354682228,1740613852024,-500.0,0.00047123,120]
[354682229,1740613852034,-500.0,0.00047123,120]
[354682230,1740613852043,-500.0,0.00047123,120]
[354682231,1740613852053,-500.0,0.00047123,120]
[354682232,1740613852064,-500.0,0.00047123,120]
[354682233,1740613852075,-2089.2,0.00047123,120]
[354682234,1740613852086,-500.0,0.00047123,120]
[354682235,1740613852097,-500.0,0.00047123,120]
[354682236,1740613852107,-500.0,0.00047123,120]
[354682237,1740613852118,-500.0,0.00047123,120]
[354682238,1740613852129,-500.0,0.00047123,120]
[354682239,1740613852138,-500.0,0.00047123,120]
[354682240,1740613852147,-3274.48,0.00047123,120]
[354682241,1740613852265,-500.0,0.00047123,120]
[354682242,1740613852275,-500.0,0.00047123,120]
[354682243,1740613852284,-500.0,0.00047123,30]
[354682244,1740613852293,-1240.04,0.00047123,120]
[354682245,1740613852303,-1114.33,0.00047123,120]
[354682246,1740613852312,-500.0,0.00047123,120]
[354682247,1740613852320,-1486.24,0.00047123,120]
[354682248,1740613852330,-500.0,0.00047123,120]
[354682249,1740613852339,-643.22,0.00047123,120]
[354682250,1740613852348,-530.0725977,0.00047123,120]
[354682251,1740613852357,-500.0,0.00047123,120]
[354682252,1740613852366,-5340.11,0.00047123,120]
[354682253,1740613852375,-500.0,0.00047123,30]
[354682254,1740613852384,-500.0,0.00047123,120]
[354682255,1740613852393,-500.0,0.00047123,120]
[354682256,1740613852403,-870.96,0.00047123,120]
[354682257,1740613852413,-3920.44,0.00047123,120]
[354682258,1740613852422,-500.0,0.00047123,120]
[354682259,1740613852432,-1000.0,0.00047123,2]
[354682260,1740613852441,-500.0,0.00047123,120]
[354682261,1740613852450,-500.0,0.00047123,120]
[354682262,1740613852459,-500.0,0.00047123,120]
[354682263,1740613852468,-500.0,0.00047123,120]